Workbook

Sheet 산업체
A1: 산업체 연구과제 예산내역서
U2: 충남대 인건비 단가 기준
A3: 예산금액 : | C3: 13750000 | F3: 원 (금 | G3: =NUMBERSTRING(C3,1) -> 일천삼백칠십오만 | L3: 원정) | N3: (VAT포함) | U3: 구분 | V3: 금액(원, 월 단가) | W3: 연구수당 상한액 (원, 월 단가) | X3: 비고
A4: (단위 : 원, %) | U4: 교수 | V4: 9000000 | W4: =V4*0.5 -> 4500000 | X4: 원 소속기관 급여를 받는 경우 연구수당으로 산정 (월 단가*참여월*최대 50%이내(연구외 용역은 80%))
A5: 비목명 | C5: 세목명 | F5: 금 액 | G5: 산출내역 | R5: 적용금액 | U5: 부교수 | V5: 8000000 | W5: =V5*0.5 -> 4000000
A6: 직접비 | B6: 인건비 | C6: 책임연구원급 | E6: 지급 | F6: 6000000 | G6: =VLOOKUP(C6,U$3:V$11,2,FALSE) -> 7000000 | H6: 원 × | J6: 월 × | L6: 명 × | N6: % | O6: = | P6: =G6*I6*K6*M6/100 -> 0 | Q6: 원 | R6: =ROUNDDOWN(P6,-1) -> 0 | S6: =IF(R6-P6=0,"적정계상", IF(R6-P6>0,TEXT((R6-P6),"0,0")&"원 "&"미반영",TEXT((P6-R6),"0,0")&"원 "&"초과됨") ) -> 적정계상 | U6: 조교수 | V6: 6000000 | W6: 3000000
C7: 선임연구원급 | E7: 지급 | F7: =IF(R7=0,"",IF(R7>P7,"초과",IF(R7="","",IF(E7="미지급","( "&TEXT(R7,"0,000")&")",R7)))) ->  | G7: =VLOOKUP(C7,U$3:V$11,2,FALSE) -> 6000000 | H7: 원 × | J7: 월 × | L7: 명 × | N7: % | O7: = | P7: =G7*I7*K7*M7/100 -> 0 | Q7: 원 | R7: =ROUNDDOWN(P7,-1) -> 0 | S7: =IF(R7-P7=0,"적정계상", IF(R7-P7>0,TEXT((R7-P7),"0,0")&"원 "&"미반영",TEXT((P7-R7),"0,0")&"원 "&"초과됨") ) -> 적정계상 | U7: 책임연구원급 | V7: 7000000 | W7: 3500000
C8: 주임연구원급 | E8: 지급 | G8: 3000000 | H8: 원 × | J8: 월 × | L8: 명 × | N8: % | O8: = | P8: =G8*I8*K8*M8/100 -> 0 | Q8: 원 | R8: =ROUNDDOWN(P8,-1) -> 0 | S8: =IF(R8-P8=0,"적정계상", IF(R8-P8>0,TEXT((R8-P8),"0,0")&"원 "&"미반영",TEXT((P8-R8),"0,0")&"원 "&"초과됨") ) -> 적정계상 | U8: 선임연구원급 | V8: 6000000 | W8: 3000000
C9: 연구원급 | E9: 지급 | G9: 2200000 | H9: 원 × | J9: 월 × | L9: 명 × | N9: % | O9: = | P9: 0 | Q9: 원 | R9: 0 | S9: 적정계상 | U9: 주임연구원급 | V9: 3000000 | W9: 1500000
C10: 연구보조원급 | E10: 지급 | G10: 1300000 | H10: 원 × | J10: 월 × | L10: 명 × | N10: % | O10: = | P10: 0 | Q10: 원 | R10: 0 | S10: 적정계상 | U10: 연구원급 | V10: 2200000 | W10: 1100000
B11: 인건비 소계(A) | F11: =SUM(F6:F10) -> 6000000 | R11: =SUM(R6:R10) -> 0 | U11: 연구보조원급 | V11: 1300000 | W11: 650000
B12: 경비 | C12: 연구장비·재료비 | D12: 장비구입비 | F12: =R12 ->  | H12: 원 × | J12: 회 | K12: = | P12: =IF(G12*I12=0,"",G12*I12) ->  | Q12: 원 | R12: =IF(P12="","",ROUNDDOWN(P12,-1)) ->  | S12: =IF(G12*I12-F12=0,"적정계상", IF(G12*I12-F12>0,TEXT((G12*I12-F12),"0,0")&"원 "&"감액함",TEXT(ABS((G12*I12-F12)),"0,0")&"원 "&"초과됨") ) -> 
D13: 시약 및 재료비 등 | F13: 3000000 | H13: 원 × | J13: 회 | K13: = | P13: =IF(G13*I13=0,"",G13*I13) ->  | Q13: 원 | R13: =IF(P13="","",ROUNDDOWN(P13,-1)) ->  | S13: =IF(G13*I13-F13=0,"적정계상", IF(G13*I13-F13>0,TEXT((G13*I13-F13),"0,0")&"원 "&"감액함",TEXT(ABS((G13*I13-F13)),"0,0")&"원 "&"초과됨") ) -> 3,000,000원 초과됨
D14: 시제(작)품 제작비 | F14: =R14 ->  | H14: 원 × | J14: 회 | K14: = | Q14: 원 | S14: =IF(G14*I14-F14=0,"적정계상", IF(G14*I14-F14>0,TEXT((G14*I14-F14),"0,0")&"원 "&"감액함",TEXT(ABS((G14*I14-F14)),"0,0")&"원 "&"초과됨") ) -> 
C15: 소계 | F15: =SUM(F12:F14) -> 3000000
C16: 연구활동비 | D16: 국외여비 | F16: =R16 ->  | H16: 원 × | J16: 명 × | L16: 회 | M16: = | P16: =IF(G16*I16*K16=0,"",G16*I16*K16) ->  | Q16: 원 | R16: =IF(P16="","",ROUNDDOWN(P16,-1)) ->  | S16: =IF(G16*I16*K16-F16=0,"적정계상", IF(G16*I16*K16-F16>0,TEXT((G16*I16*K16-F16),"0,0")&"원 "&"감액함",TEXT(ABS(G16*I16*K16-F16),"0,0")&"원 "&"초과됨") ) -> 
D17: 전문가활용비 | F17: =R17 ->  | H17: 원 × | J17: 명 × | L17: 회 | M17: = | P17: =IF(G17*I17*K17=0,"",G17*I17*K17) ->  | Q17: 원 | S17: =IF(G17*I17*K17-F17=0,"적정계상", IF(G17*I17*K17-F17>0,TEXT((G17*I17*K17-F17),"0,0")&"원 "&"감액함",TEXT(ABS(G17*I17*K17-F17),"0,0")&"원 "&"초과됨") ) -> 
D18: 인쇄 및 복사비 | H18: 원 × | J18: 회 | K18: = | P18: =IF(G18*I18=0,"",G18*I18) ->  | Q18: 원 | S18: =IF(G18*I18-F18=0,"적정계상", IF(G18*I18-F18>0,TEXT((G18*I18-F18),"0,0")&"원 "&"감액함",TEXT(ABS((G18*I18-F18)),"0,0")&"원 "&"초과됨") ) -> 
D19: 공공요금 등 수수료 | H19: 원 × | J19: 회 | K19: = | Q19: 원 | S19: =IF(G19*I19-F19=0,"적정계상", IF(G19*I19-F19>0,TEXT((G19*I19-F19),"0,0")&"원 "&"감액함",TEXT(ABS((G19*I19-F19)),"0,0")&"원 "&"초과됨") ) -> 
D20: 국내여비 | F20: =R20 ->  | H20: 원 × | J20: 명 × | L20: 회 | M20: = | P20: =IF(G20*I20*K20=0,"",G20*I20*K20) ->  | Q20: 원 | R20: =IF(P20="","",ROUNDDOWN(P20,-1)) ->  | S20: =IF(G20*I20*K20-F20=0,"적정계상", IF(G20*I20*K20-F20>0,TEXT((G20*I20*K20-F20),"0,0")&"원 "&"감액함",TEXT(ABS(G20*I20*K20-F20),"0,0")&"원 "&"초과됨") ) -> 
D21: 사무용품비 | F21: =R21 ->  | H21: 원 × | J21: 회 | K21: = | P21: =IF(G21*I21=0,"",G21*I21) ->  | Q21: 원 | S21: =IF(G21*I21-F21=0,"적정계상", IF(G21*I21-F21>0,TEXT((G21*I21-F21),"0,0")&"원 "&"감액함",TEXT(ABS((G21*I21-F21)),"0,0")&"원 "&"초과됨") ) -> 
D22: 회의비 | G22: 30000 | H22: 원 × | J22: 명 × | L22: 회 | M22: = | P22: =IF(G22*I22*K22=0,"",G22*I22*K22) ->  | Q22: 원 | S22: =IF(G22*I22*K22-F22=0,"적정계상", IF(G22*I22*K22-F22>0,TEXT((G22*I22*K22-F22),"0,0")&"원 "&"감액함",TEXT(ABS(G22*I22*K22-F22),"0,0")&"원 "&"초과됨") ) -> 
C23: 소계 | F23: =SUM(F16:F22) -> 0
C24: 연구수당 | F24: 1000000 | H24: 원 × | J24: 월 | R24: =IF(G24*I24="","",ROUNDDOWN(G24*I24,-1)) -> 0 | S24: =IF(#REF!*I24*K24-F24=0,"적정계상", IF(#REF!*I24*K24-F24>0,TEXT((#REF!*I24*K24-F24),"0,0")&"원 "&"감액함",TEXT(ABS(#REF!*I24*K24-F24),"0,0")&"원 "&"초과됨") ) -> 
B25: 경비 소계(B) | F25: =F15+F23+F24 -> 4000000
B26: 직접비 소계(A+B) | F26: =F25+F11 -> 10000000 | G26: =IF(F28-F27-F26=0,"",IF(F28-F27-F26>0,TEXT(F28-F27-F26,"0,0"&"원이 예산에 미적용되었음"),TEXT(ABS(F28-F27-F26),"0,0"&"원이 예산 초과되었음"))) -> 
A27: 간접비( C ) [총액의 | D27: 20 | E27: %] | F27: =F28-ROUNDUP(F28*(1-D27/100),-1) -> 2500000 | G27: ="연구비(부가세 제외)의 "&D27&"%" -> 연구비(부가세 제외)의 20%
A28: 공급가액(D=A+B+C) | F28: =ROUND(F30/1.1,0) -> 12500000 | G28: 공급가액
A29: 부가가치세(E) | F29: =ROUND(F30/11,0) -> 1250000 | G29: 부가세(공급가액의 10%)
A30: 예산금액(D+E) | F30: =IF(N3="(VAT별도)",C3*1.1,C3) -> 13750000 | G30: 부가세포함

Sheet 산업체_위탁
A1: 산업체 연구과제 예산내역서
U2: 충남대 인건비 단가 기준
A3: 예산금액 : | F3: 원 (금 | G3: =NUMBERSTRING(C3,1) -> 영 | L3: 원정) | N3: (VAT포함) | U3: 구분 | V3: 금액(원, 월 단가) | W3: 연구수당 상한액 (원, 월 단가) | X3: 비고
A4: (단위 : 원, %) | U4: 교수 | V4: 9000000 | W4: =V4*0.5 -> 4500000 | X4: 원 소속기관 급여를 받는 경우 연구수당으로 산정 (월 단가*참여월*최대 50%이내(연구외 용역은 80%))
A5: 비목명 | C5: 세목명 | F5: 금 액 | G5: 산출내역 | R5: 적용금액 | U5: 부교수 | V5: 8000000 | W5: =V5*0.5 -> 4000000
A6: 직접비 | B6: 인건비 | C6: 책임연구원급 | E6: 지급 | G6: =VLOOKUP(C6,U$3:V$11,2,FALSE) -> 7000000 | H6: 원 × | J6: 월 × | L6: 명 × | N6: % | O6: = | P6: =G6*I6*K6*M6/100 -> 0 | Q6: 원 | R6: =ROUNDDOWN(P6,-1) -> 0 | S6: =IF(R6-P6=0,"적정계상", IF(R6-P6>0,TEXT((R6-P6),"0,0")&"원 "&"미반영",TEXT((P6-R6),"0,0")&"원 "&"초과됨") ) -> 적정계상 | U6: 조교수 | V6: 6000000 | W6: 3000000
C7: 선임연구원급 | E7: 지급 | F7: =IF(R7=0,"",IF(R7>P7,"초과",IF(R7="","",IF(E7="미지급","( "&TEXT(R7,"0,000")&")",R7)))) ->  | G7: =VLOOKUP(C7,U$3:V$11,2,FALSE) -> 6000000 | H7: 원 × | J7: 월 × | L7: 명 × | N7: % | O7: = | P7: =G7*I7*K7*M7/100 -> 0 | Q7: 원 | R7: =ROUNDDOWN(P7,-1) -> 0 | S7: =IF(R7-P7=0,"적정계상", IF(R7-P7>0,TEXT((R7-P7),"0,0")&"원 "&"미반영",TEXT((P7-R7),"0,0")&"원 "&"초과됨") ) -> 적정계상 | U7: 책임연구원급 | V7: 7000000 | W7: 3500000
C8: 주임연구원급 | E8: 지급 | G8: 3000000 | H8: 원 × | J8: 월 × | L8: 명 × | N8: % | O8: = | P8: =G8*I8*K8*M8/100 -> 0 | Q8: 원 | R8: =ROUNDDOWN(P8,-1) -> 0 | S8: =IF(R8-P8=0,"적정계상", IF(R8-P8>0,TEXT((R8-P8),"0,0")&"원 "&"미반영",TEXT((P8-R8),"0,0")&"원 "&"초과됨") ) -> 적정계상 | U8: 선임연구원급 | V8: 6000000 | W8: 3000000
C9: 연구원급 | E9: 지급 | G9: 2200000 | H9: 원 × | J9: 월 × | L9: 명 × | N9: % | O9: = | P9: 0 | Q9: 원 | R9: 0 | S9: 적정계상 | U9: 주임연구원급 | V9: 3000000 | W9: 1500000
C10: 연구보조원급 | E10: 지급 | G10: 1300000 | H10: 원 × | J10: 월 × | L10: 명 × | N10: % | O10: = | P10: 0 | Q10: 원 | R10: 0 | S10: 적정계상 | U10: 연구원급 | V10: 2200000 | W10: 1100000
B11: 인건비 소계(A) | F11: =SUM(F6:F10) -> 0 | R11: =SUM(R6:R10) -> 0 | U11: 연구보조원급 | V11: 1300000 | W11: 650000
B12: 경비 | C12: 연구장비·재료비 | D12: 장비구입비 | H12: 원 × | J12: 회 | K12: = | P12: =IF(G12*I12=0,"",G12*I12) ->  | Q12: 원 | R12: =IF(P12="","",ROUNDDOWN(P12,-1)) ->  | S12: =IF(G12*I12-F12=0,"적정계상", IF(G12*I12-F12>0,TEXT((G12*I12-F12),"0,0")&"원 "&"감액함",TEXT(ABS((G12*I12-F12)),"0,0")&"원 "&"초과됨") ) -> 적정계상
D13: 시약 및 재료비 등 | F13: =R13 ->  | H13: 원 × | J13: 회 | K13: = | P13: =IF(G13*I13=0,"",G13*I13) ->  | Q13: 원 | R13: =IF(P13="","",ROUNDDOWN(P13,-1)) ->  | S13: =IF(G13*I13-F13=0,"적정계상", IF(G13*I13-F13>0,TEXT((G13*I13-F13),"0,0")&"원 "&"감액함",TEXT(ABS((G13*I13-F13)),"0,0")&"원 "&"초과됨") ) -> 
D14: 시제(작)품 제작비 | H14: 원 × | J14: 회 | K14: = | Q14: 원 | S14: =IF(G14*I14-F14=0,"적정계상", IF(G14*I14-F14>0,TEXT((G14*I14-F14),"0,0")&"원 "&"감액함",TEXT(ABS((G14*I14-F14)),"0,0")&"원 "&"초과됨") ) -> 
C15: 소계 | F15: =SUM(F12:F14) -> 0
C16: 연구활동비 | D16: 국외여비 | F16: =R16 ->  | H16: 원 × | J16: 명 × | L16: 회 | M16: = | P16: =IF(G16*I16*K16=0,"",G16*I16*K16) ->  | Q16: 원 | R16: =IF(P16="","",ROUNDDOWN(P16,-1)) ->  | S16: =IF(G16*I16*K16-F16=0,"적정계상", IF(G16*I16*K16-F16>0,TEXT((G16*I16*K16-F16),"0,0")&"원 "&"감액함",TEXT(ABS(G16*I16*K16-F16),"0,0")&"원 "&"초과됨") ) -> 
D17: 전문가활용비 | F17: =R17 ->  | H17: 원 × | J17: 명 × | L17: 회 | M17: = | P17: =IF(G17*I17*K17=0,"",G17*I17*K17) ->  | Q17: 원 | S17: =IF(G17*I17*K17-F17=0,"적정계상", IF(G17*I17*K17-F17>0,TEXT((G17*I17*K17-F17),"0,0")&"원 "&"감액함",TEXT(ABS(G17*I17*K17-F17),"0,0")&"원 "&"초과됨") ) -> 
D18: 인쇄 및 복사비 | H18: 원 × | J18: 회 | K18: = | P18: =IF(G18*I18=0,"",G18*I18) ->  | Q18: 원 | S18: =IF(G18*I18-F18=0,"적정계상", IF(G18*I18-F18>0,TEXT((G18*I18-F18),"0,0")&"원 "&"감액함",TEXT(ABS((G18*I18-F18)),"0,0")&"원 "&"초과됨") ) -> 
D19: 공공요금 등 수수료 | H19: 원 × | J19: 회 | K19: = | Q19: 원 | S19: =IF(G19*I19-F19=0,"적정계상", IF(G19*I19-F19>0,TEXT((G19*I19-F19),"0,0")&"원 "&"감액함",TEXT(ABS((G19*I19-F19)),"0,0")&"원 "&"초과됨") ) -> 
D20: 국내여비 | F20: =R20 ->  | H20: 원 × | J20: 명 × | L20: 회 | M20: = | P20: =IF(G20*I20*K20=0,"",G20*I20*K20) ->  | Q20: 원 | S20: =IF(G20*I20*K20-F20=0,"적정계상", IF(G20*I20*K20-F20>0,TEXT((G20*I20*K20-F20),"0,0")&"원 "&"감액함",TEXT(ABS(G20*I20*K20-F20),"0,0")&"원 "&"초과됨") ) -> 
D21: 사무용품비 | F21: =R21 ->  | H21: 원 × | J21: 회 | K21: = | P21: =IF(G21*I21=0,"",G21*I21) ->  | Q21: 원 | S21: =IF(G21*I21-F21=0,"적정계상", IF(G21*I21-F21>0,TEXT((G21*I21-F21),"0,0")&"원 "&"감액함",TEXT(ABS((G21*I21-F21)),"0,0")&"원 "&"초과됨") ) -> 
D22: 회의비 | G22: 30000 | H22: 원 × | J22: 명 × | L22: 회 | M22: = | P22: =IF(G22*I22*K22=0,"",G22*I22*K22) ->  | Q22: 원 | S22: =IF(G22*I22*K22-F22=0,"적정계상", IF(G22*I22*K22-F22>0,TEXT((G22*I22*K22-F22),"0,0")&"원 "&"감액함",TEXT(ABS(G22*I22*K22-F22),"0,0")&"원 "&"초과됨") ) -> 
C23: 소계 | F23: =SUM(F16:F22) -> 0
C24: 연구수당 | F24: =SUM(R24) -> 0 | H24: 원 × | J24: 월 | R24: =IF(G24*I24="","",ROUNDDOWN(G24*I24,-1)) -> 0 | S24: =IF(#REF!*I24*K24-F24=0,"적정계상", IF(#REF!*I24*K24-F24>0,TEXT((#REF!*I24*K24-F24),"0,0")&"원 "&"감액함",TEXT(ABS(#REF!*I24*K24-F24),"0,0")&"원 "&"초과됨") ) -> 
B25: 경비 소계(B) | F25: =F15+F23+F24 -> 0
B26: 위탁연구개발비©
B27: 직접비 소계(A+B+C) | F27: =F25+F11+F26 -> 0
A28: 간접비( A+B ) [총액의 | D28: 20 | E28: %] | F28: =SUM(F11+F25)*20% -> 0 | G28: ="연구비(부가세, 위탁연구비 제외)의 "&D28&"%" -> 연구비(부가세, 위탁연구비 제외)의 20%
A29: 공급가액(D=A+B+C) | F29: =ROUND(F31/1.1,0) -> 0 | G29: 공급가액
A30: 부가가치세(E) | F30: =ROUND(F31/11,0) -> 0 | G30: 부가세(공급가액의 10%)
A31: 예산금액(D+E) | F31: =IF(N3="(VAT별도)",C3*1.1,C3) -> 0 | G31: 부가세포함
